Cogmind - Beta 12 @@@ ROGUE MODE // 2023.05.20 @ 00:23:31 Player: puncake Result: Destroyed by S-10 Pest with Light Assault Rifle Performance ------------- Evolutions (2) 1000 Regions Visited (5) 1000 Robots Destroyed (9) 45 Value Destroyed (397) 397 Prototype IDs (2) 40 Alien Tech Used (0) 0 Bonus (200) 200 TOTAL SCORE: 2682 Bonus ------- Entered Garrisons 200 Cogmind --------- Core Integrity 0/550 Matter 300/300 Energy 100/100 System Corruption 0% Temperature Cool (0) Movement Flying (40) Location -8/Garrison Parts ------- > --- POWER (1) -------- (None) > --- PROPULSION (4) --- Flight Unit > --- UTILITY (4) ------ (None) > --- WEAPON (2) ------- (None) > --- INVENTORY (5) ---- Aluminum Leg Improved Heat Sink Hacking Suite Particle Gun Mining Claw Peak State ------------ > --- POWER ------------ Light Deuterium Engine > --- PROPULSION ------- Improved VTOL Module Improved VTOL Module Improved VTOL Module > --- UTILITY ---------- Small Storage Unit Hacking Suite Hacking Suite Hacking Suite > --- WEAPON ----------- Mining Claw Mining Claw > --- INVENTORY -------- Reinforced Ion Engine Hacking Suite EM Shotgun Medium Laser Assault Rifle Light Assault Rifle Improved Datajack [Rating: 28] Favorites ----------- Power Light Ion Engine Engine Light Ion Engine Propulsion Improved VTOL Module Treads Light Treads Leg Aluminum Leg Flight Unit Improved VTOL Module Utility Small Storage Unit Storage Small Storage Unit Processor Signal Interpreter Hackware Hacking Suite Weapon Mining Claw Energy Gun Medium Laser Ballistic Gun Light Assault Rifle Slashing Weapon Mining Claw Special Melee Weapon Improved Datajack Build | -11 -10 -9 -9 -8 -8 ------- Run | Jun Mat Mat Min Mat Gar Slots Evolved 4 | . . 2 . 2 . Power . | . . . . . . Propulsion 2 | . . 2 . . . Utility 2 | . . . . 2 . Weapon . | . . . . . . Parts Attached 35 | 6 3 11 2 2 11 Power 7 | 1 . 2 2 . 2 Engine 7 | 1 . 2 2 . 2 Core . | . . . . . . Reactor . | . . . . . . Propulsion 13 | 2 1 6 . . 4 Treads 2 | . . 2 . . . Leg 3 | 2 1 . . . . Wheel . | . . . . . . Hover . | . . . . . . Flight 8 | . . 4 . . 4 Utility 6 | 1 2 1 . 2 . Device . | . . . . . . Storage 2 | 1 1 . . . . Processor 1 | . 1 . . . . Hackware 3 | . . 1 . 2 . Protection . | . . . . . . Artifact . | . . . . . . Weapon 9 | 2 . 2 . . 5 Energy Gun 2 | . . . . . 2 Energy Cannon . | . . . . . . Ballistic Gun 4 | 2 . . . . 2 Ballistic Cannon . | . . . . . . Launcher . | . . . . . . Special Weapon . | . . . . . . Impact Weapon . | . . . . . . Slashing Weapon 2 | . . 2 . . . Piercing Weapon . | . . . . . . Special Melee Weapon 1 | . . . . . 1 Unidentified Prototypes 2 | . . 2 . . . Parts Lost 18 | . . . . . 18 Power 3 | . . . . . 3 Propulsion 6 | . . . . . 6 Utility 3 | . . . . . 3 Weapon 6 | . . . . . 6 Highest Loss Streak 16 | . . . . . 16 To Critical Strikes . | . . . . . . Average Slot Usage (%) 81 | . 95 95 88 90 59 Engine 9 | . 14 11 11 9 5 Treads 3 | . . 17 . . . Leg 10 | . 28 16 . . . Flight 14 | . . 5 33 27 20 Storage 11 | . 18 11 11 9 6 Processor 3 | . 6 11 . . . Hackware 8 | . . . 11 27 16 Ballistic Gun 12 | . 28 19 . . 2 Slashing Weapon 7 | . . 2 22 18 7 Naked Turns . | . . . . . . Heaviest Build 16 | 11 14 16 12 12 12 Greatest Support 20 | 20 20 20 15 15 16 Greatest Overweight (x) 3 | 1 . 3 . . 2 Average Overweight (x) . | . . . . . . Largest Inventory Capacity 8 | 8 8 8 8 8 8 Average Capacity 7 | 6 8 8 8 8 7 Most Carried 8 | 6 8 8 8 8 8 Average Carried 6 | 4 7 7 8 7 5 Final Capacity 8 | 8 8 8 8 8 5 Final Carried 8 | 6 8 8 8 8 5 Class Distribution -------------------- 58% | Mutant 17% | Sprinter 16% | Hacker-Sprinter 6% | Hacker-Mutant Dominant Class ---------------- Mutant | -10/Materials Mutant | -9/Materials Sprinter | -9/Mines Hacker-Sprinter | -8/Materials Hacker-Sprinter | -8/Garrison Resources | -11 -10 -9 -9 -8 -8 ----------- Run | Jun Mat Mat Min Mat Gar Matter Collected 529 | 218 87 . 114 . 110 Remotely . | . . . . . . Salvage Created 293 | . 87 . 66 . 140 Parts 20 | . 5 . 4 . 11 Haulers Intercepted 1 | . 1 . . . . Recyclers Shooed . | . . . . . . Parts Field Recycled . | . . . . . . Retrieved Matter . | . . . . . . Parts Self-Destructed . | . . . . . . Prevented . | . . . . . . Kills | -11 -10 -9 -9 -8 -8 ------- Run | Jun Mat Mat Min Mat Gar Combat Hostiles Destroyed 7 | . 1 . 1 . 5 Melee 2 | . . . 1 . 1 Guns 5 | . 1 . . . 4 Classes Destroyed 5 | . 2 . 2 . 1 Worker 1 | . . . 1 . . Hauler 1 | . 1 . . . . Swarmer 3 | . . . . . 3 Grunt 3 | . 1 . . . 2 Brawler 1 | . . . 1 . . Best Kill Streak 4 | . 1 . 1 . 4 Combat Bots Only 4 | . 1 . 1 . 4 Max Kills in Single Turn 1 | . 1 . 1 . 1 Gunslinging . | . . . . . . Exploded . | . . . . . . Melee 1 | . . . 1 . 1 Uniques/NPCs Destroyed . | . . . . . . Combat | -11 -10 -9 -9 -8 -8 -------- Run | Jun Mat Mat Min Mat Gar Damage Taken 1662 | . 23 . 117 . 1522 Core 562 | . . . 11 . 551 Absorbed by Shields 48 | . . . . . 48 Core Remaining (%) 99 | 100 100 . 97 . . Volleys Fired 28 | . 6 1 . . 21 Largest 2 | . 2 2 . . 2 Hottest 65 | . 40 40 . . 65 Shots Fired 48 | . 12 2 . . 34 Gun 48 | . 12 2 . . 34 Cannon . | . . . . . . Launcher . | . . . . . . Special . | . . . . . . Kinetic 36 | . 12 2 . . 22 Thermal 8 | . . . . . 8 Explosive . | . . . . . . Electromagnetic 4 | . . . . . 4 Robot Hit Streak 8 | . 4 . . . 8 Robot Miss Streak 3 | . 2 . . . 3 Penetration Max . | . . . . . . Secondary Targets 3 | . . . . . 3 Max Gunslinging Chain 1 | . . . . . 1 Shots Hit Robots 42 | . 7 . 6 . 29 Core Hits 14 | . 4 . 2 . 8 Critical Kills . | . . . . . . Critical Parts Destroyed . | . . . . . . Critical Strikes . | . . . . . . Melee Attacks 21 | . . . 8 . 13 Impact . | . . . . . . Slashing 20 | . . . 8 . 12 Piercing . | . . . . . . Sneak Attacks 3 | . . . 1 . 2 Combat Hostiles 2 | . . . . . 2 Follow-up Attacks 3 | . . . 2 . 1 Damage Inflicted 723 | . 63 . 132 . 528 Guns 336 | . 63 . . . 273 Cannons . | . . . . . . Explosions . | . . . . . . Melee 387 | . . . 132 . 255 Ramming . | . . . . . . Kinetic 228 | . 63 . . . 165 Thermal 63 | . . . . . 63 Explosive . | . . . . . . Electromagnetic 45 | . . . . . 45 Impact . | . . . . . . Slashing 387 | . . . 132 . 255 Piercing . | . . . . . . Highest Corruption . | . . . . . . Average Corruption . | . . . . . . Corruption Purged . | . . . . . . Corruption Blocked . | . . . . . . Overload Shots . | . . . . . . Overflow Damage 32 | . . . 16 . 16 Projectiles . | . . . . . . Explosions . | . . . . . . Melee 32 | . . . 16 . 16 Knockbacks . | . . . . . . Impact . | . . . . . . Kinetic . | . . . . . . Secondary . | . . . . . . Self-Inflicted Damage . | . . . . . . Shots . | . . . . . . Rammed . | . . . . . . Targets Rammed . | . . . . . . Kicked . | . . . . . . Crushed . | . . . . . . Highest Temperature 455 | . . 455 . . 114 Average Temperature 111 | . . 221 . . 66 Received Heat Transfer 783 | . 12 . 42 . 729 Effects 1 | . . 1 . . . Shutdowns 1 | . . 1 . . . Siege Activations . | . . . . . . Robots Corrupted . | . . . . . . Combat Hostiles . | . . . . . . Parts Fried . | . . . . . . Impact Corruptions . | . . . . . . Robots Melted . | . . . . . . Combat Hostiles . | . . . . . . Parts Melted . | . . . . . . Heat Transferred 185 | . . . . . 185 Parts Sabotaged . | . . . . . . Parts Stolen . | . . . . . . Parts Stripped . | . . . . . . Power Chain Reactions . | . . . . . . Missiles Intercepted . | . . . . . . Alert | -11 -10 -9 -9 -8 -8 ------- Run | Jun Mat Mat Min Mat Gar Peak Influence 157 | . 92 39 95 37 157 Initial 38 | . . 38 15 37 24 Average 55 | . 33 38 69 37 92 Maximum Alert Level . | . . . . . . Low Security (%) 100 | 100 100 100 100 100 100 Level 1 . | . . . . . . Level 2 . | . . . . . . Level 3 . | . . . . . . Level 4 . | . . . . . . Level 5 . | . . . . . . High Security . | . . . . . . Max Security . | . . . . . . Squads Dispatched 2 | . 1 . 1 . . Investigation . | . . . . . . Extermination . | . . . . . . Reinforcement 1 | . 1 . . . . Assault 1 | . . . 1 . . Garrison . | . . . . . . Intercept . | . . . . . . Searches Triggered . | . . . . . . Construction Impeded . | . . . . . . Haulers Reinforced . | . . . . . . Active Scanning Responses . | . . . . . . Cargo Convoy Interrupts . | . . . . . . Stealth | -11 -10 -9 -9 -8 -8 --------- Run | Jun Mat Mat Min Mat Gar Distress Signals 1 | . 1 . . . . Communications Jammed . | . . . . . . Distress Signals . | . . . . . . Times Spotted 21 | . 6 . 2 . 13 Peak Tracking Total 6 | . 3 . 2 . 6 Tactical Retreats 5 | . . . 1 . 4 Traps | -11 -10 -9 -9 -8 -8 ------- Run | Jun Mat Mat Min Mat Gar Traps Triggered 6 | . . . . . 6 Indirectly . | . . . . . . Trap Hack Attempts . | . . . . . . Triggered . | . . . . . . Disarmed . | . . . . . . Reprogrammed 4 | . . 4 . . . Reused . | . . . . . . Traps Extracted . | . . . . . . Installed . | . . . . . . Triggered . | . . . . . . Machines | -11 -10 -9 -9 -8 -8 ---------- Run | Jun Mat Mat Min Mat Gar Machines Disabled 1 | . . . . . 1 Max in Single Turn 1 | . . . . . 1 Garrison Relay 1 | . . . . . 1 Machines Repaired . | . . . . . . Machines Sabotaged . | . . . . . . Overloaded Fab Kills . | . . . . . . Hacking | -11 -10 -9 -9 -8 -8 --------- Run | Jun Mat Mat Min Mat Gar Machines Accessed 5 | . 1 2 . 1 1 Terminals 4 | . 1 2 . . 1 Fabricators . | . . . . . . Repair Stations . | . . . . . . Recycling Units . | . . . . . . Scanalyzers . | . . . . . . Garrison Access 1 | . . . . 1 . Total Hacks 9 | . 3 3 . 2 1 Successful 8 | . 3 2 . 2 1 Failed 1 | . . 1 . . . Catastrophic . | . . . . . . Database Lockouts . | . . . . . . Manual 1 | . 1 . . . . Terminals 7 | . 3 3 . . 1 Fabricators . | . . . . . . Repair Stations . | . . . . . . Recycling Units . | . . . . . . Scanalyzers . | . . . . . . Garrison Access 2 | . . . . 2 . Terminal Hacks 6 | . 3 2 . . 1 Record 1 | . 1 . . . . Emergency Access Points 1 | . . . . . 1 Locate Traps 2 | . 1 1 . . . Reprogram Traps 1 | . . 1 . . . Hauler Manifests 1 | . 1 . . . . Fabricator Hacks . | . . . . . . Repair Station Hacks . | . . . . . . Recycling Unit Hacks . | . . . . . . Scanalyzer . | . . . . . . Garrison Access Hacks 2 | . . . . 2 . Unlock Access 1 | . . . . 1 . Coupler Status 1 | . . . . 1 . Unauthorized Hacks . | . . . . . . Terminals . | . . . . . . Fabricators . | . . . . . . Repair Stations . | . . . . . . Recycling Units . | . . . . . . Scanalyzers . | . . . . . . Garrison Access . | . . . . . . Data Cores Recovered . | . . . . . . Used . | . . . . . . Hacking Detections 4 | . 1 2 . 1 . Full Trace Events . | . . . . . . Feedback Events . | . . . . . . Feedback Blocked . | . . . . . . Robot Schematics Acquired . | . . . . . . Robots Built . | . . . . . . Authchips . | . . . . . . Time . | . . . . . . Total Robot Build Rating . | . . . . . . Part Schematics Acquired . | . . . . . . Parts Built . | . . . . . . Authchips . | . . . . . . Time . | . . . . . . Total Part Build Rating . | . . . . . . Parts Repaired . | . . . . . . Time . | . . . . . . Parts Recycled . | . . . . . . Recycled Matter . | . . . . . . Retrieved Matter . | . . . . . . Retrieved Components . | . . . . . . Parts Scanalyzed . | . . . . . . Part Schematics Acquired . | . . . . . . Parts Damaged . | . . . . . . Bothacking | -11 -10 -9 -9 -8 -8 ------------ Run | Jun Mat Mat Min Mat Gar Used RIF Installer . | . . . . . . Robots Hacked . | . . . . . . Non-combat . | . . . . . . Combat . | . . . . . . Robot Hacks Applied . | . . . . . . Relay Couplers Released 4 | . . . . . 4 Machine Destruction 4 | . . . . . 4 Fabnet Peak Effective % . | . . . . . . Robots Rewired . | . . . . . . Allies Hacked . | . . . . . . Hacks Repelled . | . . . . . . Allies | -11 -10 -9 -9 -8 -8 -------- Run | Jun Mat Mat Min Mat Gar Total Allies 1 | . . . 1 . . Largest Group 1 | . . . 1 1 1 Highest-Rated Group 31 | . . . 31 31 31 Highest-Rated Ally 31 | . . . 31 31 31 Total Orders . | . . . . . . Ally Attacks 4 | . . . . . 4 Total Damage 61 | . . . . . 61 Kills . | . . . . . . Allies Corrupted . | . . . . . . Allies Melted . | . . . . . . Intel | -11 -10 -9 -9 -8 -8 ------- Run | Jun Mat Mat Min Mat Gar Robot Analysis Total . | . . . . . . Derelict Logs Recovered . | . . . . . . Drone Launches . | . . . . . . Drone Recoveries . | . . . . . . Exploration | -11 -10 -9 -9 -8 -8 ------------- Run | Jun Mat Mat Min Mat Gar Turns Passed 831 | 66 208 154 104 27 272 Spaces Moved 874 | 50 150 110 244 42 278 Core 20 | 16 . 1 . . 3 Treads . | . . . . . . Legs 262 | 34 150 78 . . . Wheels . | . . . . . . Hover . | . . . . . . Flight 592 | . . 31 244 42 275 Fastest Speed 29 | 50 120 29 29 29 29 Average Speed 58 | 98 120 97 29 29 32 Slowest Speed 200 | 120 120 200 29 29 150 Overloaded Moves . | . . . . . . Propulsion Burnouts . | . . . . . . Robots Hopped 1 | . . . 1 . . Cave-ins Triggered . | . . . . . . Exploration Rate (%) 22 | 4 29 11 54 5 31 Regions Visited 5 Branch Regions 1 Pre-discovered Areas . | . . . . . . Known Exits Taken 2 | . 1 . . 1 . Unknown Exits Taken 3 | 1 . 1 1 . . Scrap Searched 2 | . . . 2 . . Spaces Dug . | . . . . . . Terrain Destroyed . | . . . . . . Melee . | . . . . . . Projectile . | . . . . . . AOE . | . . . . . . Terrain Rammed . | . . . . . . Walls Destroyed . | . . . . . . Machines Disabled . | . . . . . . Actions | -11 -10 -9 -9 -8 -8 --------- Run | Jun Mat Mat Min Mat Gar Total 1113 | 65 167 156 262 56 407 Wait 49 | . 4 13 11 10 11 Move 868 | 49 149 109 241 42 278 Hop 1 | . . . 1 . . Pick Up 32 | 10 3 9 . 2 8 Fast Attach 8 | 2 1 5 . . . Attach 20 | 4 1 2 . 2 11 Detach . | . . . . . . Swap 7 | . 1 4 2 . . Drop 18 | . 2 13 1 . 2 Fire 28 | . 6 1 . . 21 Melee 18 | . . . 6 . 12 Ram . | . . . . . . Kick . | . . . . . . Crush . | . . . . . . Escape Stasis 64 | . . . . . 64 Rewire . | . . . . . . Trap . | . . . . . . Miscellaneous . | . . . . . . Route ------- -11/Junkyard -10/Materials -9/Materials -9/Mines -8/Materials -8/Garrison History --------- Turn | Location | Event 4 | -11/Junkyard | Discovered new exit (range 16) 67 | -11/Junkyard | Entered Materials 223 | -10/Materials | Discovered new exit (range 3) 241 | -10/Materials | Identified exit to Materials 275 | -10/Materials | Entered another Materials area 275 | -9/Materials | Evolved 2 slots: Propulsion x2 331 | -9/Materials | Build established: Mutant 374 | -9/Materials | Discovered new exit (range 16) 429 | -9/Materials | Entered Mines 522 | -9/Mines | Discovered new exit (range 14) 527 | -9/Mines | Met a Derelict testing a Signal Generator 533 | -9/Mines | Entered Materials 533 | -8/Materials | Accompanied by 1 ally 533 | -8/Materials | Evolved 2 slots: Utility x2 550 | -8/Materials | Identified exit to Garrison 560 | -8/Materials | Entered Garrison 560 | -8/Garrison | Accompanied by 1 ally 601 | -8/Garrison | Garrison Relay disabled 638 | -8/Garrison | Triggered checkpoint 696 | -8/Garrison | Triggered checkpoint 735 | -8/Garrison | Core integrity fell below 50% 765 | -8/Garrison | Core integrity fell below 20% 799 | -8/Garrison | Lost 16 parts (3p4n3u6w) 808 | -8/Garrison | Triggered checkpoint 832 | -8/Garrison | Destroyed by S-10 Pest with Light Assault Rifle Last Messages --------------- 00816_ A bubble of rippling energy engulfs the area. 00816_ Field strength at 92. 00817_ Field strength at 84. 00818_ Field strength at 76. 00819_ Field strength at 60. 00820_ Field strength at 50. 00821_ Field strength at 37. 00822_ Field strength at 27. 00823_ Field strength at 16. 00823_ Flight Unit destroyed. 00824_ Field strength at 4. 00825_ Stasis field depleted. 00827_ Triggered Stasis Trap. 00827_ A bubble of rippling energy engulfs the area. 00827_ Field strength at 95. 00827_ Field strength at 90. 00828_ Field strength at 85. 00829_ Field strength at 78. 00830_ Field strength at 73. 00831_ Field strength at 63. Map ----- +----------------------------------------------------+ | ????????????????????????????????? + | | ?????????????????????????????????? # | | ??????????????????????????????+???# ## ## # | | ??????????????????????????????????# ## ## # | | ????????????????????????????????+?" " | | ??????????????????????????????????" " | | ??????????????????????????????????" " | | ??????????????????????????????????" " | | ??????????????????????????????????# ## ## # | | ????????????????????????########### ## ## # | | ????????????????????????# | | ????????????????????????+ | | ????????????????????????# | | ????????????????????????# #####+###### ##++## | | ????????????????????????# #??????????# #????? | | ????????????????###+##??# #??????????#+####????? | | ????????????????#"# +??+ g????????????????????? | | ????????????????#" +??+ #????????????????????? | | ????????????????#" #??# #????????????????????? | | ????????????????#" #??# #????????????????????? | | ????????????????#"# #??# #????????????????????? | | ????????????????### #??# #????????????????????? | | ??????????????????# #### #????????????????????? | | ??????????????????# + + s #????????????????????? | | ??????????????????# ####ss #????????????????????? | | ????????????????# ^ #??#@^ #????????????????????? | | ????????????????+ #??# #????????????????????? | | ????????????????# #??# #????????????????????? | | ????????????????### #??# #????????????????????? | | ??????????????????# #??# #????????????????????? | | ??????????????????# ?? +????????????????????? | | ??????????????????# ?? #????????????????????? | | ??????????????????####??# #????????????????????? | | ????????????????????????# #????????????????????? | | ????????????????????????# #????????????????????? | | ????????????????????????? #????????????????????? | | ????????????????????????? #????????????????????? | | ????????????????????????? #????????????????????? | | ????????????????????????? #????????????????????? | | ????????????????????????? #????????????????????? | | ????????????????????????? ?????????????????????? | | ?????????????????????????????????????????????????? | | ?????????????????????????????????????????????????? | | ?????????????????????????????????????????????????? | | ?????????????????????????????????????????????????? | | ??????????????????????+??????????????????????????? | | ?????????????????????????????????????????????????? | | ?????????????????????????????????????????????????? | | ?????????????????????????????????????????????????? | | ?????????????????????????????????????????????????? | +----------------------------------------------------+ Best States ------------- Heat Dissipation 31 Energy Generation 14 Energy Capacity 280 Matter Stores 300 Matter Capacity 450 Sight Range 16 Terrain Scan Density 10 Evasion (%) 64 Offensive Hacking 30 Item Schematics ----------------- None Robot Schematics ------------------ None Fabricated ------------ Nothing Alien Tech Used ----------------- None Achievements -------------- None Challenges ------------ None Game ------ Seed MetafiberDroneRefractor Manual? 0 Play Time 00:17:44 Cumulative 29.5 hours Start 2023.05.20 @ 00:06:50 End 2023.05.20 @ 00:23:31 Sessions 1 Manual Loads 0 Difficulty Rogue Special Mode None Game No. 39 Rogue 39 Adventurer 0 Explorer 0 Win Type - Total 0 Types 0/0/0/0/0/0/0/0/0 Lore% 17 Gallery% 40 Achievement% 26 Wizard Run 0 Options --------- ASCII 1 Keyboard 0 Movement Mouse Keybinds 0 Fullscreen 1 Font 18/X11 Map View 76x50 Tactical HUD 1 Map Filters NONE Filters NONE Steam 1 RUN: 8c3cfe7b-0fd3-4f04-b736-8a896d75c70b